Workbook

Sheet WORK
A1: TM1-WORK | B1: 5 | C1: 6 | D1: 7 | E1: 8 | F1: 9 | G1: 10 | H1: 11 | I1: 12 | J1: 13 | K1: 14 | L1: 15 | M1: 16 | N1: 17 | O1: 18 | P1: 19 | Q1: 20 | R1: 21 | S1: 22 | T1: 23 | U1: Total
A2: 5 | B2: 1380 | C2: 843 | D2: 78 | E2: 246 | F2: 190 | G2: 622 | H2: 492 | I2: 824 | J2: 846 | K2: 2768 | L2: 4204 | M2: 3719 | N2: 3341 | O2: 4149 | P2: 1155 | Q2: 1294 | R2: 1500 | S2: 604 | T2: 648 | U2: =SUM(B2:T2) -> 28,903
A3: 6 | B3: 0 | C3: 1504 | D3: 153 | E3: 119 | F3: 382 | G3: 981 | H3: 930 | I3: 847 | J3: 1769 | K3: 1518 | L3: 7412 | M3: 9072 | N3: 10829 | O3: 6904 | P3: 3824 | Q3: 2027 | R3: 2373 | S3: 931 | T3: 896 | U3: =SUM(B3:T3) -> 52,471
A4: 7 | B4: 0 | C4: 0 | D4: 295 | E4: 203 | F4: 164 | G4: 1940 | H4: 1487 | I4: 1537 | J4: 1878 | K4: 3277 | L4: 4277 | M4: 16137 | N4: 25368 | O4: 22009 | P4: 6336 | Q4: 6724 | R4: 3812 | S4: 1452 | T4: 1357 | U4: 98,253
A5: 8 | B5: 0 | C5: 0 | D5: 0 | E5: 173 | F5: 107 | G5: 299 | H5: 1106 | I5: 876 | J5: 1373 | K5: 1319 | L5: 3620 | M5: 3560 | N5: 18815 | O5: 21992 | P5: 8661 | Q5: 4664 | R5: 5222 | S5: 981 | T5: 925 | U5: 73,693
A6: 9 | B6: 0 | C6: 0 | D6: 0 | E6: 0 | F6: 50 | G6: 110 | H6: 79 | I6: 342 | J6: 442 | K6: 491 | L6: 748 | M6: 1399 | N6: 2084 | O6: 7821 | P6: 4087 | Q6: 2953 | R6: 1725 | S6: 669 | T6: 339 | U6: 23,339
A7: 10 | B7: 0 | C7: 0 | D7: 0 | E7: 0 | F7: 0 | G7: 72 | H7: 47 | I7: 52 | J7: 235 | K7: 227 | L7: 401 | M7: 387 | N7: 1151 | O7: 1100 | P7: 1663 | Q7: 1553 | R7: 1183 | S7: 262 | T7: 218 | U7: 8,551
A8: 11 | B8: 0 | C8: 0 | D8: 0 | E8: 0 | F8: 0 | G8: 0 | H8: 51 | I8: 58 | J8: 76 | K8: 235 | L8: 364 | M8: 397 | N8: 703 | O8: 1397 | P8: 549 | Q8: 1669 | R8: 1708 | S8: 429 | T8: 203 | U8: 7,839
A9: 12 | B9: 0 | C9: 0 | D9: 0 | E9: 0 | F9: 0 | G9: 0 | H9: 0 | I9: 50 | J9: 65 | K9: 51 | L9: 390 | M9: 367 | N9: 671 | O9: 756 | P9: 691 | Q9: 599 | R9: 1709 | S9: 563 | T9: 357 | U9: 6,269
A10: 13 | B10: 0 | C10: 0 | D10: 0 | E10: 0 | F10: 0 | G10: 0 | H10: 0 | I10: 0 | J10: 93 | K10: 77 | L10: 100 | M10: 529 | N10: 723 | O10: 974 | P10: 510 | Q10: 923 | R10: 782 | S10: 869 | T10: 758 | U10: 6,338
A11: 14 | B11: 0 | C11: 0 | D11: 0 | E11: 0 | F11: 0 | G11: 0 | H11: 0 | I11: 0 | J11: 0 | K11: 74 | L11: 122 | M11: 94 | N11: 734 | O11: 845 | P11: 494 | Q11: 492 | R11: 959 | S11: 283 | T11: 703 | U11: 4,800
A12: 15 | B12: 0 | C12: 0 | D12: 0 | E12: 0 | F12: 0 | G12: 0 | H12: 0 | I12: 0 | J12: 0 | K12: 0 | L12: 90 | M12: 93 | N12: 127 | O12: 760 | P12: 354 | Q12: 447 | R12: 451 | S12: 300 | T12: 235 | U12: 2,857
A13: 16 | B13: 0 | C13: 0 | D13: 0 | E13: 0 | F13: 0 | G13: 0 | H13: 0 | I13: 0 | J13: 0 | K13: 0 | L13: 0 | M13: 116 | N13: 177 | O13: 204 | P13: 503 | Q13: 466 | R13: 605 | S13: 216 | T13: 338 | U13: 2,625
A14: 17 | B14: 0 | C14: 0 | D14: 0 | E14: 0 | F14: 0 | G14: 0 | H14: 0 | I14: 0 | J14: 0 | K14: 0 | L14: 0 | M14: 0 | N14: 188 | O14: 190 | P14: 109 | Q14: 469 | R14: 476 | S14: 217 | T14: 159 | U14: 1,808
A15: 18 | B15: 0 | C15: 0 | D15: 0 | E15: 0 | F15: 0 | G15: 0 | H15: 0 | I15: 0 | J15: 0 | K15: 0 | L15: 0 | M15: 0 | N15: 0 | O15: 199 | P15: 110 | Q15: 88 | R15: 465 | S15: 190 | T15: 166 | U15: 1,218
A16: 19 | B16: 0 | C16: 0 | D16: 0 | E16: 0 | F16: 0 | G16: 0 | H16: 0 | I16: 0 | J16: 0 | K16: 0 | L16: 0 | M16: 0 | N16: 0 | O16: 0 | P16: 91 | Q16: 86 | R16: 77 | S16: 124 | T16: 116 | U16: 494
A17: 20 | B17: 0 | C17: 0 | D17: 0 | E17: 0 | F17: 0 | G17: 0 | H17: 0 | I17: 0 | J17: 0 | K17: 0 | L17: 0 | M17: 0 | N17: 0 | O17: 0 | P17: 0 | Q17: 89 | R17: 85 | S17: 27 | T17: 129 | U17: 330
A18: 21 | B18: 0 | C18: 0 | D18: 0 | E18: 0 | F18: 0 | G18: 0 | H18: 0 | I18: 0 | J18: 0 | K18: 0 | L18: 0 | M18: 0 | N18: 0 | O18: 0 | P18: 0 | Q18: 0 | R18: 79 | S18: 21 | T18: 26 | U18: 126
A19: 22 | B19: 0 | C19: 0 | D19: 0 | E19: 0 | F19: 0 | G19: 0 | H19: 0 | I19: 0 | J19: 0 | K19: 0 | L19: 0 | M19: 0 | N19: 0 | O19: 0 | P19: 0 | Q19: 0 | R19: 0 | S19: 7 | T19: 8 | U19: 15
A20: 23 | B20: 0 | C20: 0 | D20: 0 | E20: 0 | F20: 0 | G20: 0 | H20: 0 | I20: 0 | J20: 0 | K20: 0 | L20: 0 | M20: 0 | N20: 0 | O20: 0 | P20: 0 | Q20: 0 | R20: 0 | S20: 0 | T20: 11 | U20: 11
A21: Total | B21: =SUM(B2:B20) -> 1,380 | C21: =SUM(C2:C20) -> 2,347 | D21: 526 | E21: 741 | F21: 893 | G21: 4,024 | H21: 4,192 | I21: 4,586 | J21: 6,777 | K21: 10,037 | L21: 21,728 | M21: 35,870 | N21: 64,911 | O21: 69,300 | P21: 29,137 | Q21: 24,543 | R21: 23,211 | S21: 8,145 | T21: 7,592 | U21: 319,940
A22: ASIM-WORK | B22: 5 | C22: 6 | D22: 7 | E22: 8 | F22: 9 | G22: 10 | H22: 11 | I22: 12 | J22: 13 | K22: 14 | L22: 15 | M22: 16 | N22: 17 | O22: 18 | P22: 19 | Q22: 20 | R22: 21 | S22: 22 | T22: 23
A23: 5 | B23: 208 | C23: 258 | D23: 21 | E23: 145 | F23: 109 | G23: 588 | H23: 449 | I23: 989 | J23: 890 | K23: 2783 | L23: 4232 | M23: 4002 | N23: 3361 | O23: 4129 | P23: 1114 | Q23: 1257 | R23: 1501 | S23: 619 | T23: 619 | U23: 27,274
A24: 6 | B24: 0 | C24: 370 | D24: 42 | E24: 58 | F24: 182 | G24: 878 | H24: 817 | I24: 974 | J24: 1882 | K24: 1600 | L24: 7206 | M24: 9211 | N24: 10474 | O24: 6689 | P24: 3817 | Q24: 2157 | R24: 2398 | S24: 966 | T24: 892 | U24: 50,613
A25: 7 | B25: 0 | C25: 0 | D25: 69 | E25: 94 | F25: 63 | G25: 1375 | H25: 1103 | I25: 1509 | J25: 1738 | K25: 3523 | L25: 4036 | M25: 16361 | N25: 25637 | O25: 21802 | P25: 6272 | Q25: 7034 | R25: 3870 | S25: 1449 | T25: 1314 | U25: 97,249
A26: 8 | B26: 0 | C26: 0 | D26: 0 | E26: 63 | F26: 58 | G26: 180 | H26: 860 | I26: 996 | J26: 1341 | K26: 1479 | L26: 3595 | M26: 3685 | N26: 18959 | O26: 22087 | P26: 8492 | Q26: 4737 | R26: 5200 | S26: 960 | T26: 945 | U26: 73,637
A27: 9 | B27: 0 | C27: 0 | D27: 0 | E27: 0 | F27: 25 | G27: 81 | H27: 62 | I27: 297 | J27: 331 | K27: 530 | L27: 661 | M27: 1545 | N27: 1987 | O27: 7799 | P27: 3849 | Q27: 3164 | R27: 1770 | S27: 676 | T27: 307 | U27: 23,084
A28: 10 | B28: 0 | C28: 0 | D28: 0 | E28: 0 | F28: 0 | G28: 51 | H28: 35 | I28: 30 | J28: 222 | K28: 222 | L28: 349 | M28: 402 | N28: 1120 | O28: 1091 | P28: 1704 | Q28: 1656 | R28: 1285 | S28: 232 | T28: 218 | U28: 8,617 | X28: Period | Y28: Start Hour | Z28: End Hour
A29: 11 | B29: 0 | C29: 0 | D29: 0 | E29: 0 | F29: 0 | G29: 0 | H29: 36 | I29: 44 | J29: 61 | K29: 226 | L29: 323 | M29: 416 | N29: 620 | O29: 1241 | P29: 578 | Q29: 1697 | R29: 1740 | S29: 418 | T29: 226 | U29: 7,626 | X29: 5 | Y29: 5 | Z29: 6
A30: 12 | B30: 0 | C30: 0 | D30: 0 | E30: 0 | F30: 0 | G30: 0 | H30: 0 | I30: 40 | J30: 49 | K30: 43 | L30: 383 | M30: 383 | N30: 667 | O30: 766 | P30: 687 | Q30: 576 | R30: 1708 | S30: 546 | T30: 400 | U30: 6,248 | X30: 6 | Y30: 6 | Z30: 7
A31: 13 | B31: 0 | C31: 0 | D31: 0 | E31: 0 | F31: 0 | G31: 0 | H31: 0 | I31: 0 | J31: 92 | K31: 68 | L31: 97 | M31: 539 | N31: 816 | O31: 1000 | P31: 522 | Q31: 893 | R31: 801 | S31: 852 | T31: 738 | U31: 6,418 | X31: 7 | Y31: 7 | Z31: 8
A32: 14 | B32: 0 | C32: 0 | D32: 0 | E32: 0 | F32: 0 | G32: 0 | H32: 0 | I32: 0 | J32: 0 | K32: 105 | L32: 103 | M32: 106 | N32: 872 | O32: 894 | P32: 516 | Q32: 528 | R32: 899 | S32: 290 | T32: 757 | U32: 5,070 | X32: 8 | Y32: 8 | Z32: 9
A33: 15 | B33: 0 | C33: 0 | D33: 0 | E33: 0 | F33: 0 | G33: 0 | H33: 0 | I33: 0 | J33: 0 | K33: 0 | L33: 149 | M33: 124 | N33: 195 | O33: 927 | P33: 457 | Q33: 504 | R33: 555 | S33: 325 | T33: 223 | U33: 3,459 | X33: 9 | Y33: 9 | Z33: 10
A34: 16 | B34: 0 | C34: 0 | D34: 0 | E34: 0 | F34: 0 | G34: 0 | H34: 0 | I34: 0 | J34: 0 | K34: 0 | L34: 0 | M34: 212 | N34: 282 | O34: 293 | P34: 609 | Q34: 576 | R34: 679 | S34: 266 | T34: 352 | U34: 3,269 | X34: 10 | Y34: 10 | Z34: 11
A35: 17 | B35: 0 | C35: 0 | D35: 0 | E35: 0 | F35: 0 | G35: 0 | H35: 0 | I35: 0 | J35: 0 | K35: 0 | L35: 0 | M35: 0 | N35: 308 | O35: 299 | P35: 131 | Q35: 641 | R35: 638 | S35: 232 | T35: 220 | U35: 2,469 | X35: 11 | Y35: 11 | Z35: 12
A36: 18 | B36: 0 | C36: 0 | D36: 0 | E36: 0 | F36: 0 | G36: 0 | H36: 0 | I36: 0 | J36: 0 | K36: 0 | L36: 0 | M36: 0 | N36: 0 | O36: 440 | P36: 191 | Q36: 184 | R36: 782 | S36: 238 | T36: 237 | U36: 2,072 | X36: 12 | Y36: 12 | Z36: 13
A37: 19 | B37: 0 | C37: 0 | D37: 0 | E37: 0 | F37: 0 | G37: 0 | H37: 0 | I37: 0 | J37: 0 | K37: 0 | L37: 0 | M37: 0 | N37: 0 | O37: 0 | P37: 194 | Q37: 171 | R37: 156 | S37: 223 | T37: 205 | U37: 949 | X37: 13 | Y37: 13 | Z37: 14
A38: 20 | B38: 0 | C38: 0 | D38: 0 | E38: 0 | F38: 0 | G38: 0 | H38: 0 | I38: 0 | J38: 0 | K38: 0 | L38: 0 | M38: 0 | N38: 0 | O38: 0 | P38: 0 | Q38: 204 | R38: 181 | S38: 59 | T38: 202 | U38: 646 | X38: 14 | Y38: 14 | Z38: 15
A39: 21 | B39: 0 | C39: 0 | D39: 0 | E39: 0 | F39: 0 | G39: 0 | H39: 0 | I39: 0 | J39: 0 | K39: 0 | L39: 0 | M39: 0 | N39: 0 | O39: 0 | P39: 0 | Q39: 0 | R39: 238 | S39: 78 | T39: 61 | U39: 377 | X39: 15 | Y39: 15 | Z39: 16
A40: 22 | B40: 0 | C40: 0 | D40: 0 | E40: 0 | F40: 0 | G40: 0 | H40: 0 | I40: 0 | J40: 0 | K40: 0 | L40: 0 | M40: 0 | N40: 0 | O40: 0 | P40: 0 | Q40: 0 | R40: 0 | S40: 30 | T40: 27 | U40: 57 | X40: 16 | Y40: 16 | Z40: 17
A41: 23 | B41: 0 | C41: 0 | D41: 0 | E41: 0 | F41: 0 | G41: 0 | H41: 0 | I41: 0 | J41: 0 | K41: 0 | L41: 0 | M41: 0 | N41: 0 | O41: 0 | P41: 0 | Q41: 0 | R41: 0 | S41: 0 | T41: 32 | U41: 32 | X41: 17 | Y41: 17 | Z41: 18
A42: Total | B42: =SUM(B23:B41) -> 208 | C42: =SUM(C23:C41) -> 628 | D42: =SUM(D23:D41) -> 132 | E42: =SUM(E23:E41) -> 360 | F42: =SUM(F23:F41) -> 437 | G42: =SUM(G23:G41) -> 3,153 | H42: =SUM(H23:H41) -> 3,362 | I42: =SUM(I23:I41) -> 4,879 | J42: =SUM(J23:J41) -> 6,606 | K42: =SUM(K23:K41) -> 10,579 | L42: =SUM(L23:L41) -> 21,134 | M42: =SUM(M23:M41) -> 36,986 | N42: =SUM(N23:N41) -> 65,298 | O42: =SUM(O23:O41) -> 69,457 | P42: =SUM(P23:P41) -> 29,133 | Q42: =SUM(Q23:Q41) -> 25,979 | R42: =SUM(R23:R41) -> 24,401 | S42: =SUM(S23:S41) -> 8,459 | T42: =SUM(T23:T41) -> 7,975 | U42: 319,166 | X42: 18 | Y42: 18 | Z42: 19
A43: DIFF | B43: =B22 -> 5 | C43: =C22 -> 6 | D43: 7 | E43: 8 | F43: 9 | G43: 10 | H43: 11 | I43: 12 | J43: 13 | K43: 14 | L43: 15 | M43: 16 | N43: 17 | O43: 18 | P43: 19 | Q43: 20 | R43: 21 | S43: 22 | T43: 23 | X43: 19 | Y43: 19 | Z43: 20
A44: =A23 -> 5 | B44: =B2-B23 -> 1,172 | C44: =C2-C23 -> 585 | D44: 57 | E44: 101 | F44: 81 | G44: 34 | H44: 43 | I44: (165) | J44: (44) | K44: (15) | L44: (28) | M44: (283) | N44: (20) | O44: 20 | P44: 41 | Q44: 37 | R44: (1) | S44: (15) | T44: 29 | U44: 1,629 | X44: 20 | Y44: 20 | Z44: 21
A45: =A24 -> 6 | B45: =B3-B24 -> 0 | C45: 1,134 | D45: 111 | E45: 61 | F45: 200 | G45: 103 | H45: 113 | I45: (127) | J45: (113) | K45: (82) | L45: 206 | M45: (139) | N45: 355 | O45: 215 | P45: 7 | Q45: (130) | R45: (25) | S45: (35) | T45: 4 | U45: 1,858 | X45: 21 | Y45: 21 | Z45: 22
A46: 7 | B46: =B4-B25 -> 0 | C46: 0 | D46: 226 | E46: 109 | F46: 101 | G46: 565 | H46: 384 | I46: 28 | J46: 140 | K46: (246) | L46: 241 | M46: (224) | N46: (269) | O46: 207 | P46: 64 | Q46: (310) | R46: (58) | S46: 3 | T46: 43 | U46: 1,004 | X46: 22 | Y46: 22 | Z46: 23
A47: 8 | B47: =B5-B26 -> 0 | C47: 0 | D47: 0 | E47: 110 | F47: 49 | G47: 119 | H47: 246 | I47: (120) | J47: 32 | K47: (160) | L47: 25 | M47: (125) | N47: (144) | O47: (95) | P47: 169 | Q47: (73) | R47: 22 | S47: 21 | T47: (20) | U47: 56 | X47: 23 | Y47: 23 | Z47: 24
A48: 9 | B48: =B6-B27 -> 0 | C48: 0 | D48: 0 | E48: 0 | F48: 25 | G48: 29 | H48: 17 | I48: 45 | J48: 111 | K48: (39) | L48: 87 | M48: (146) | N48: 97 | O48: 22 | P48: 238 | Q48: (211) | R48: (45) | S48: (7) | T48: 32 | U48: 255
A49: 10 | B49: =B7-B28 -> 0 | C49: 0 | D49: 0 | E49: 0 | F49: 0 | G49: 21 | H49: 12 | I49: 22 | J49: 13 | K49: 5 | L49: 52 | M49: (15) | N49: 31 | O49: 9 | P49: (41) | Q49: (103) | R49: (102) | S49: 30 | T49: 0 | U49: (66)
A50: 11 | B50: =B8-B29 -> 0 | C50: 0 | D50: 0 | E50: 0 | F50: 0 | G50: 0 | H50: 15 | I50: 14 | J50: 15 | K50: 9 | L50: 41 | M50: (19) | N50: 83 | O50: 156 | P50: (29) | Q50: (28) | R50: (32) | S50: 11 | T50: (23) | U50: 213
A51: 12 | B51: =B9-B30 -> 0 | C51: 0 | D51: 0 | E51: 0 | F51: 0 | G51: 0 | H51: 0 | I51: 10 | J51: 16 | K51: 8 | L51: 7 | M51: (16) | N51: 4 | O51: (10) | P51: 4 | Q51: 23 | R51: 1 | S51: 17 | T51: (43) | U51: 21
A52: 13 | B52: =B10-B31 -> 0 | C52: 0 | D52: 0 | E52: 0 | F52: 0 | G52: 0 | H52: 0 | I52: 0 | J52: 1 | K52: 9 | L52: 3 | M52: (10) | N52: (93) | O52: (26) | P52: (12) | Q52: 30 | R52: (19) | S52: 17 | T52: 20 | U52: (80)
A53: 14 | B53: =B11-B32 -> 0 | C53: 0 | D53: 0 | E53: 0 | F53: 0 | G53: 0 | H53: 0 | I53: 0 | J53: 0 | K53: (31) | L53: 19 | M53: (12) | N53: (138) | O53: (49) | P53: (22) | Q53: (36) | R53: 60 | S53: (7) | T53: (54) | U53: (270)
A54: 15 | B54: =B12-B33 -> 0 | C54: 0 | D54: 0 | E54: 0 | F54: 0 | G54: 0 | H54: 0 | I54: 0 | J54: 0 | K54: 0 | L54: (59) | M54: (31) | N54: (68) | O54: (167) | P54: (103) | Q54: (57) | R54: (104) | S54: (25) | T54: 12 | U54: (602)
A55: 16 | B55: =B13-B34 -> 0 | C55: 0 | D55: 0 | E55: 0 | F55: 0 | G55: 0 | H55: 0 | I55: 0 | J55: 0 | K55: 0 | L55: 0 | M55: (96) | N55: (105) | O55: (89) | P55: (106) | Q55: (110) | R55: (74) | S55: (50) | T55: (14) | U55: (644)
A56: 17 | B56: =B14-B35 -> 0 | C56: 0 | D56: 0 | E56: 0 | F56: 0 | G56: 0 | H56: 0 | I56: 0 | J56: 0 | K56: 0 | L56: 0 | M56: 0 | N56: (120) | O56: (109) | P56: (22) | Q56: (172) | R56: (162) | S56: (15) | T56: (61) | U56: (661)
A57: 18 | B57: =B15-B36 -> 0 | C57: 0 | D57: 0 | E57: 0 | F57: 0 | G57: 0 | H57: 0 | I57: 0 | J57: 0 | K57: 0 | L57: 0 | M57: 0 | N57: 0 | O57: (241) | P57: (81) | Q57: (96) | R57: (317) | S57: (48) | T57: (71) | U57: (854)
A58: 19 | B58: =B16-B37 -> 0 | C58: 0 | D58: 0 | E58: 0 | F58: 0 | G58: 0 | H58: 0 | I58: 0 | J58: 0 | K58: 0 | L58: 0 | M58: 0 | N58: 0 | O58: 0 | P58: (103) | Q58: (85) | R58: (79) | S58: (99) | T58: (89) | U58: (455)
A59: 20 | B59: =B17-B38 -> 0 | C59: 0 | D59: 0 | E59: 0 | F59: 0 | G59: 0 | H59: 0 | I59: 0 | J59: 0 | K59: 0 | L59: 0 | M59: 0 | N59: 0 | O59: 0 | P59: 0 | Q59: (115) | R59: (96) | S59: (32) | T59: (73) | U59: (316)
A60: 21 | B60: =B18-B39 -> 0 | C60: 0 | D60: 0 | E60: 0 | F60: 0 | G60: 0 | H60: 0 | I60: 0 | J60: 0 | K60: 0 | L60: 0 | M60: 0 | N60: 0 | O60: 0 | P60: 0 | Q60: 0 | R60: (159) | S60: (57) | T60: (35) | U60: (251)
A61: 22 | B61: =B19-B40 -> 0 | C61: 0 | D61: 0 | E61: 0 | F61: 0 | G61: 0 | H61: 0 | I61: 0 | J61: 0 | K61: 0 | L61: 0 | M61: 0 | N61: 0 | O61: 0 | P61: 0 | Q61: 0 | R61: 0 | S61: (23) | T61: (19) | U61: (42)
A62: 23 | B62: =B20-B41 -> 0 | C62: 0 | D62: 0 | E62: 0 | F62: 0 | G62: 0 | H62: 0 | I62: 0 | J62: 0 | K62: 0 | L62: 0 | M62: 0 | N62: 0 | O62: 0 | P62: 0 | Q62: 0 | R62: 0 | S62: 0 | T62: (21) | U62: (21)
A63: Total | B63: =B21-B42 -> 1,172 | C63: 1,719 | D63: 394 | E63: 381 | F63: 456 | G63: 871 | H63: 830 | I63: (293) | J63: 171 | K63: (542) | L63: 594 | M63: (1,116) | N63: (387) | O63: (157) | P63: 4 | Q63: (1,436) | R63: (1,190) | S63: (314) | T63: (383) | U63: 774
A64: PCT DIFF | B64: =B43 -> 5 | C64: =C43 -> 6 | D64: 7 | E64: 8 | F64: 9 | G64: 10 | H64: 11 | I64: 12 | J64: 13 | K64: 14 | L64: 15 | M64: 16 | N64: 17 | O64: 18 | P64: 19 | Q64: 20 | R64: 21 | S64: 22 | T64: 23
A65: =A44 -> 5 | B65: =B44/B2 -> 0.85 | C65: =C44/C2 -> 0.69 | D65: 0.73 | E65: 0.41 | F65: 0.43 | G65: 0.05 | H65: 0.09 | I65: (0.20) | J65: (0.05) | K65: (0.01) | L65: (0.01) | M65: (0.08) | N65: (0.01) | O65: 0.00 | P65: 0.04 | Q65: 0.03 | R65: (0.00) | S65: (0.02) | T65: 0.04
A66: =A45 -> 6 | B66: =B45/B3 ->  | C66: 0.75 | D66: 0.73 | E66: 0.51 | F66: 0.52 | G66: 0.10 | H66: 0.12 | I66: (0.15) | J66: (0.06) | K66: (0.05) | L66: 0.03 | M66: (0.02) | N66: 0.03 | O66: 0.03 | P66: 0.00 | Q66: (0.06) | R66: (0.01) | S66: (0.04) | T66: 0.00
A67: 7 | B67: =B46/B4 ->  | D67: 0.77 | E67: 0.54 | F67: 0.62 | G67: 0.29 | H67: 0.26 | I67: 0.02 | J67: 0.07 | K67: (0.08) | L67: 0.06 | M67: (0.01) | N67: (0.01) | O67: 0.01 | P67: 0.01 | Q67: (0.05) | R67: (0.02) | S67: 0.00 | T67: 0.03
A68: 8 | B68: =B47/B5 ->  | E68: 0.64 | F68: 0.46 | G68: 0.40 | H68: 0.22 | I68: (0.14) | J68: 0.02 | K68: (0.12) | L68: 0.01 | M68: (0.04) | N68: (0.01) | O68: (0.00) | P68: 0.02 | Q68: (0.02) | R68: 0.00 | S68: 0.02 | T68: (0.02)
A69: 9 | B69: =B48/B6 ->  | F69: 0.50 | G69: 0.26 | H69: 0.22 | I69: 0.13 | J69: 0.25 | K69: (0.08) | L69: 0.12 | M69: (0.10) | N69: 0.05 | O69: 0.00 | P69: 0.06 | Q69: (0.07) | R69: (0.03) | S69: (0.01) | T69: 0.09
A70: 10 | B70: =B49/B7 ->  | G70: 0.29 | H70: 0.26 | I70: 0.42 | J70: 0.06 | K70: 0.02 | L70: 0.13 | M70: (0.04) | N70: 0.03 | O70: 0.01 | P70: (0.02) | Q70: (0.07) | R70: (0.09) | S70: 0.11 | T70: 0
A71: 11 | B71: =B50/B8 ->  | H71: 0.29 | I71: 0.24 | J71: 0.20 | K71: 0.04 | L71: 0.11 | M71: (0.05) | N71: 0.12 | O71: 0.11 | P71: (0.05) | Q71: (0.02) | R71: (0.02) | S71: 0.03 | T71: (0.11)
A72: 12 | B72: =B51/B9 ->  | I72: 0.20 | J72: 0.25 | K72: 0.16 | L72: 0.02 | M72: (0.04) | N72: 0.01 | O72: (0.01) | P72: 0.01 | Q72: 0.04 | R72: 0.00 | S72: 0.03 | T72: (0.12)
A73: 13 | B73: =B52/B10 ->  | J73: 0.01 | K73: 0.12 | L73: 0.03 | M73: (0.02) | N73: (0.13) | O73: (0.03) | P73: (0.02) | Q73: 0.03 | R73: (0.02) | S73: 0.02 | T73: 0.03
A74: 14 | B74: =B53/B11 ->  | K74: (0.42) | L74: 0.16 | M74: (0.13) | N74: (0.19) | O74: (0.06) | P74: (0.04) | Q74: (0.07) | R74: 0.06 | S74: (0.02) | T74: (0.08)
A75: 15 | B75: =B54/B12 ->  | L75: (0.66) | M75: (0.33) | N75: (0.54) | O75: (0.22) | P75: (0.29) | Q75: (0.13) | R75: (0.23) | S75: (0.08) | T75: 0.05
A76: 16 | B76: =B55/B13 ->  | M76: (0.83) | N76: (0.59) | O76: (0.44) | P76: (0.21) | Q76: (0.24) | R76: (0.12) | S76: (0.23) | T76: (0.04)
A77: 17 | B77: =B56/B14 ->  | N77: (0.64) | O77: (0.57) | P77: (0.20) | Q77: (0.37) | R77: (0.34) | S77: (0.07) | T77: (0.38)
A78: 18 | B78: =B57/B15 ->  | O78: (1.21) | P78: (0.74) | Q78: (1.09) | R78: (0.68) | S78: (0.25) | T78: (0.43)
A79: 19 | B79: =B58/B16 ->  | P79: (1.13) | Q79: (0.99) | R79: (1.03) | S79: (0.80) | T79: (0.77)
A80: 20 | B80: =B59/B17 ->  | Q80: (1.29) | R80: (1.13) | S80: (1.19) | T80: (0.57)
A81: 21 | B81: =B60/B18 ->  | R81: (2.01) | S81: (2.71) | T81: (1.35)
A82: 22 | B82: =B61/B19 ->  | S82: =S61/S19 -> (3.29) | T82: (2.38)
A83: 23 | B83: =B62/B20 ->  | T83: (1.91)

Sheet SCHOOL
A1: TM1-SCHOOL | B1: 5 | C1: 6 | D1: 7 | E1: 8 | F1: 9 | G1: 10 | H1: 11 | I1: 12 | J1: 13 | K1: 14 | L1: 15 | M1: 16 | N1: 17 | O1: 18 | P1: 19 | Q1: 20 | R1: 21 | S1: 22 | T1: 23 | U1: Total
A2: 5 | B2: 17 | C2: 10 | D2: 8 | E2: 17 | F2: 6 | G2: 40 | H2: 31 | I2: 58 | J2: 132 | K2: 86 | L2: 107 | M2: 50 | N2: 18 | O2: 23 | P2: 13 | Q2: 23 | R2: 19 | S2: 11 | T2: 13
A3: 6 | B3: 0 | C3: 151 | D3: 122 | E3: 80 | F3: 109 | G3: 334 | H3: 442 | I3: 446 | J3: 1590 | K3: 1725 | L3: 1608 | M3: 939 | N3: 660 | O3: 275 | P3: 175 | Q3: 172 | R3: 199 | S3: 82 | T3: 96 | U3: =SUM(B3:T3) -> 9,205
A4: 7 | B4: 0 | C4: 0 | D4: 558 | E4: 407 | F4: 279 | G4: 1954 | H4: 1850 | I4: 2219 | J4: 4458 | K4: 8043 | L4: 14762 | M4: 5659 | N4: 5685 | O4: 3370 | P4: 838 | Q4: 827 | R4: 881 | S4: 397 | T4: 427 | U4: 52,614
A5: 8 | B5: 0 | C5: 0 | D5: 0 | E5: 453 | F5: 344 | G5: 984 | H5: 1807 | I5: 1771 | J5: 4191 | K5: 4230 | L5: 13019 | M5: 9438 | N5: 6440 | O5: 5047 | P5: 1685 | Q5: 709 | R5: 778 | S5: 331 | T5: 323 | U5: 51,550
A6: 9 | B6: 0 | C6: 0 | D6: 0 | E6: 0 | F6: 48 | G6: 162 | H6: 138 | I6: 273 | J6: 495 | K6: 618 | L6: 939 | M6: 1193 | N6: 1592 | O6: 871 | P6: 358 | Q6: 189 | R6: 99 | S6: 46 | T6: 37 | U6: 7,058
A7: 10 | B7: 0 | C7: 0 | D7: 0 | E7: 0 | F7: 0 | G7: 91 | H7: 76 | I7: 67 | J7: 253 | K7: 213 | L7: 468 | M7: 235 | N7: 638 | O7: 605 | P7: 164 | Q7: 156 | R7: 84 | S7: 27 | T7: 20 | U7: 3,097
A8: 11 | B8: 0 | C8: 0 | D8: 0 | E8: 0 | F8: 0 | G8: 0 | H8: 102 | I8: 86 | J8: 163 | K8: 289 | L8: 486 | M8: 392 | N8: 407 | O8: 572 | P8: 345 | Q8: 189 | R8: 172 | S8: 46 | T8: 18 | U8: 3,267
A9: 12 | B9: 0 | C9: 0 | D9: 0 | E9: 0 | F9: 0 | G9: 0 | H9: 0 | I9: 127 | J9: 210 | K9: 207 | L9: 545 | M9: 397 | N9: 519 | O9: 350 | P9: 344 | Q9: 368 | R9: 177 | S9: 70 | T9: 32 | U9: 3,346
A10: 13 | B10: 0 | C10: 0 | D10: 0 | E10: 0 | F10: 0 | G10: 0 | H10: 0 | I10: 0 | J10: 186 | K10: 151 | L10: 177 | M10: 240 | N10: 239 | O10: 324 | P10: 101 | Q10: 202 | R10: 202 | S10: 51 | T10: 35 | U10: 1,908
A11: 14 | B11: 0 | C11: 0 | D11: 0 | E11: 0 | F11: 0 | G11: 0 | H11: 0 | I11: 0 | J11: 0 | K11: 194 | L11: 281 | M11: 131 | N11: 326 | O11: 318 | P11: 191 | Q11: 114 | R11: 177 | S11: 103 | T11: 42 | U11: 1,877
A12: 15 | B12: 0 | C12: 0 | D12: 0 | E12: 0 | F12: 0 | G12: 0 | H12: 0 | I12: 0 | J12: 0 | K12: 0 | L12: 434 | M12: 235 | N12: 272 | O12: 393 | P12: 169 | Q12: 237 | R12: 112 | S12: 109 | T12: 86 | U12: 2,047
A13: 16 | B13: 0 | C13: 0 | D13: 0 | E13: 0 | F13: 0 | G13: 0 | H13: 0 | I13: 0 | J13: 0 | K13: 0 | L13: 0 | M13: 609 | N13: 624 | O13: 469 | P13: 429 | Q13: 365 | R13: 475 | S13: 108 | T13: 169 | U13: 3,248
A14: 17 | B14: 0 | C14: 0 | D14: 0 | E14: 0 | F14: 0 | G14: 0 | H14: 0 | I14: 0 | J14: 0 | K14: 0 | L14: 0 | M14: 0 | N14: 888 | O14: 725 | P14: 320 | Q14: 472 | R14: 506 | S14: 227 | T14: 106 | U14: 3,244
A15: 18 | B15: 0 | C15: 0 | D15: 0 | E15: 0 | F15: 0 | G15: 0 | H15: 0 | I15: 0 | J15: 0 | K15: 0 | L15: 0 | M15: 0 | N15: 0 | O15: 1057 | P15: 501 | Q15: 346 | R15: 610 | S15: 259 | T15: 279 | U15: 3,052
A16: 19 | B16: 0 | C16: 0 | D16: 0 | E16: 0 | F16: 0 | G16: 0 | H16: 0 | I16: 0 | J16: 0 | K16: 0 | L16: 0 | M16: 0 | N16: 0 | O16: 0 | P16: 99 | Q16: 67 | R16: 59 | S16: 32 | T16: 41 | U16: 298
A17: 20 | B17: 0 | C17: 0 | D17: 0 | E17: 0 | F17: 0 | G17: 0 | H17: 0 | I17: 0 | J17: 0 | K17: 0 | L17: 0 | M17: 0 | N17: 0 | O17: 0 | P17: 0 | Q17: 153 | R17: 127 | S17: 38 | T17: 62 | U17: 380
A18: 21 | B18: 0 | C18: 0 | D18: 0 | E18: 0 | F18: 0 | G18: 0 | H18: 0 | I18: 0 | J18: 0 | K18: 0 | L18: 0 | M18: 0 | N18: 0 | O18: 0 | P18: 0 | Q18: 0 | R18: 198 | S18: 85 | T18: 59 | U18: 342
A19: 22 | B19: 0 | C19: 0 | D19: 0 | E19: 0 | F19: 0 | G19: 0 | H19: 0 | I19: 0 | J19: 0 | K19: 0 | L19: 0 | M19: 0 | N19: 0 | O19: 0 | P19: 0 | Q19: 0 | R19: 0 | S19: 4 | T19: 2 | U19: 6
A20: 23 | B20: 0 | C20: 0 | D20: 0 | E20: 0 | F20: 0 | G20: 0 | H20: 0 | I20: 0 | J20: 0 | K20: 0 | L20: 0 | M20: 0 | N20: 0 | O20: 0 | P20: 0 | Q20: 0 | R20: 0 | S20: 0 | T20: 7 | U20: 7
A21: Total | B21: =SUM(B2:B20) -> 17 | C21: =SUM(C2:C20) -> 161 | D21: 688 | E21: 957 | F21: 786 | G21: 3,565 | H21: 4,446 | I21: 5,047 | J21: 11,678 | K21: 15,756 | L21: 32,826 | M21: 19,518 | N21: 18,308 | O21: 14,399 | P21: 5,732 | Q21: 4,589 | R21: 4,875 | S21: 2,026 | T21: 1,854 | U21: 147,228
A22: ASIM-SCHOOL | B22: 5 | C22: 6 | D22: 7 | E22: 8 | F22: 9 | G22: 10 | H22: 11 | I22: 12 | J22: 13 | K22: 14 | L22: 15 | M22: 16 | N22: 17 | O22: 18 | P22: 19 | Q22: 20 | R22: 21 | S22: 22 | T22: 23
A23: 5 | B23: 11 | C23: 8 | D23: 8 | E23: 23 | F23: 12 | G23: 50 | H23: 43 | I23: 65 | J23: 153 | K23: 69 | L23: 88 | M23: 44 | N23: 16 | O23: 15 | P23: 14 | Q23: 7 | R23: 12 | S23: 5 | T23: 5 | U23: 648
A24: 6 | B24: 0 | C24: 92 | D24: 70 | E24: 56 | F24: 116 | G24: 424 | H24: 451 | I24: 464 | J24: 1639 | K24: 1574 | L24: 1483 | M24: 715 | N24: 488 | O24: 189 | P24: 111 | Q24: 117 | R24: 105 | S24: 50 | T24: 53 | U24: 8,197
A25: 7 | B25: 0 | C25: 0 | D25: 515 | E25: 425 | F25: 377 | G25: 2227 | H25: 2195 | I25: 2485 | J25: 4684 | K25: 8198 | L25: 14489 | M25: 5218 | N25: 4818 | O25: 2599 | P25: 590 | Q25: 623 | R25: 557 | S25: 218 | T25: 195 | U25: 50,413
A26: 8 | B26: 0 | C26: 0 | D26: 0 | E26: 484 | F26: 408 | G26: 1173 | H26: 2173 | I26: 2049 | J26: 4745 | K26: 4348 | L26: 13133 | M26: 9112 | N26: 5922 | O26: 4461 | P26: 1251 | Q26: 533 | R26: 508 | S26: 227 | T26: 194 | U26: 50,721
A27: 9 | B27: 0 | C27: 0 | D27: 0 | E27: 0 | F27: 82 | G27: 176 | H27: 195 | I27: 314 | J27: 580 | K27: 629 | L27: 1035 | M27: 1193 | N27: 1584 | O27: 777 | P27: 293 | Q27: 203 | R27: 61 | S27: 33 | T27: 26 | U27: 7,181
A28: 10 | B28: 0 | C28: 0 | D28: 0 | E28: 0 | F28: 0 | G28: 97 | H28: 100 | I28: 71 | J28: 293 | K28: 231 | L28: 498 | M28: 293 | N28: 601 | O28: 622 | P28: 151 | Q28: 116 | R28: 69 | S28: 12 | T28: 10 | U28: 3,164 | X28: Period | Y28: Start Hour | Z28: End Hour
A29: 11 | B29: 0 | C29: 0 | D29: 0 | E29: 0 | F29: 0 | G29: 0 | H29: 162 | I29: 105 | J29: 191 | K29: 276 | L29: 481 | M29: 342 | N29: 349 | O29: 596 | P29: 291 | Q29: 185 | R29: 112 | S29: 24 | T29: 14 | U29: 3,128 | X29: 5 | Y29: 5 | Z29: 6
A30: 12 | B30: 0 | C30: 0 | D30: 0 | E30: 0 | F30: 0 | G30: 0 | H30: 0 | I30: 167 | J30: 298 | K30: 221 | L30: 667 | M30: 379 | N30: 512 | O30: 335 | P30: 349 | Q30: 323 | R30: 167 | S30: 60 | T30: 21 | U30: 3,499 | X30: 6 | Y30: 6 | Z30: 7
A31: 13 | B31: 0 | C31: 0 | D31: 0 | E31: 0 | F31: 0 | G31: 0 | H31: 0 | I31: 0 | J31: 277 | K31: 172 | L31: 257 | M31: 243 | N31: 301 | O31: 239 | P31: 107 | Q31: 182 | R31: 175 | S31: 36 | T31: 26 | U31: 2,015 | X31: 7 | Y31: 7 | Z31: 8
A32: 14 | B32: 0 | C32: 0 | D32: 0 | E32: 0 | F32: 0 | G32: 0 | H32: 0 | I32: 0 | J32: 0 | K32: 242 | L32: 401 | M32: 185 | N32: 443 | O32: 252 | P32: 189 | Q32: 127 | R32: 202 | S32: 82 | T32: 35 | U32: 2,158 | X32: 8 | Y32: 8 | Z32: 9
A33: 15 | B33: 0 | C33: 0 | D33: 0 | E33: 0 | F33: 0 | G33: 0 | H33: 0 | I33: 0 | J33: 0 | K33: 0 | L33: 693 | M33: 279 | N33: 309 | O33: 389 | P33: 213 | Q33: 158 | R33: 111 | S33: 100 | T33: 84 | U33: 2,336 | X33: 9 | Y33: 9 | Z33: 10
A34: 16 | B34: 0 | C34: 0 | D34: 0 | E34: 0 | F34: 0 | G34: 0 | H34: 0 | I34: 0 | J34: 0 | K34: 0 | L34: 0 | M34: 922 | N34: 902 | O34: 552 | P34: 539 | Q34: 383 | R34: 361 | S34: 98 | T34: 151 | U34: 3,908 | X34: 10 | Y34: 10 | Z34: 11
A35: 17 | B35: 0 | C35: 0 | D35: 0 | E35: 0 | F35: 0 | G35: 0 | H35: 0 | I35: 0 | J35: 0 | K35: 0 | L35: 0 | M35: 0 | N35: 1720 | O35: 961 | P35: 399 | Q35: 585 | R35: 509 | S35: 182 | T35: 110 | U35: 4,466 | X35: 11 | Y35: 11 | Z35: 12
A36: 18 | B36: 0 | C36: 0 | D36: 0 | E36: 0 | F36: 0 | G36: 0 | H36: 0 | I36: 0 | J36: 0 | K36: 0 | L36: 0 | M36: 0 | N36: 0 | O36: 1685 | P36: 780 | Q36: 453 | R36: 757 | S36: 207 | T36: 255 | U36: 4,137 | X36: 12 | Y36: 12 | Z36: 13
A37: 19 | B37: 0 | C37: 0 | D37: 0 | E37: 0 | F37: 0 | G37: 0 | H37: 0 | I37: 0 | J37: 0 | K37: 0 | L37: 0 | M37: 0 | N37: 0 | O37: 0 | P37: 167 | Q37: 101 | R37: 93 | S37: 46 | T37: 30 | U37: 437 | X37: 13 | Y37: 13 | Z37: 14
A38: 20 | B38: 0 | C38: 0 | D38: 0 | E38: 0 | F38: 0 | G38: 0 | H38: 0 | I38: 0 | J38: 0 | K38: 0 | L38: 0 | M38: 0 | N38: 0 | O38: 0 | P38: 0 | Q38: 189 | R38: 176 | S38: 39 | T38: 59 | U38: 463 | X38: 14 | Y38: 14 | Z38: 15
A39: 21 | B39: 0 | C39: 0 | D39: 0 | E39: 0 | F39: 0 | G39: 0 | H39: 0 | I39: 0 | J39: 0 | K39: 0 | L39: 0 | M39: 0 | N39: 0 | O39: 0 | P39: 0 | Q39: 0 | R39: 419 | S39: 93 | T39: 80 | U39: 592 | X39: 15 | Y39: 15 | Z39: 16
A40: 22 | B40: 0 | C40: 0 | D40: 0 | E40: 0 | F40: 0 | G40: 0 | H40: 0 | I40: 0 | J40: 0 | K40: 0 | L40: 0 | M40: 0 | N40: 0 | O40: 0 | P40: 0 | Q40: 0 | R40: 0 | S40: 2 | T40: 3 | U40: 5 | X40: 16 | Y40: 16 | Z40: 17
A41: 23 | B41: 0 | C41: 0 | D41: 0 | E41: 0 | F41: 0 | G41: 0 | H41: 0 | I41: 0 | J41: 0 | K41: 0 | L41: 0 | M41: 0 | N41: 0 | O41: 0 | P41: 0 | Q41: 0 | R41: 0 | S41: 0 | T41: 21 | U41: 21 | X41: 17 | Y41: 17 | Z41: 18
A42: Total | B42: =SUM(B23:B41) -> 11 | C42: =SUM(C23:C41) -> 100 | D42: 593 | E42: 988 | F42: 995 | G42: 4,147 | H42: 5,319 | I42: 5,720 | J42: 12,860 | K42: 15,960 | L42: 33,225 | M42: 18,925 | N42: 17,965 | O42: 13,672 | P42: 5,444 | Q42: 4,285 | R42: 4,394 | S42: 1,514 | T42: 1,372 | U42: 147,489 | X42: 18 | Y42: 18 | Z42: 19
A43: DIFF | B43: =B22 -> 5 | C43: =C22 -> 6 | D43: 7 | E43: 8 | F43: 9 | G43: 10 | H43: 11 | I43: 12 | J43: 13 | K43: 14 | L43: 15 | M43: 16 | N43: 17 | O43: 18 | P43: 19 | Q43: 20 | R43: 21 | S43: 22 | T43: 23 | X43: 19 | Y43: 19 | Z43: 20
A44: =A23 -> 5 | B44: =B2-B23 -> 6 | C44: =C2-C23 -> 2 | D44: 0 | E44: (6) | F44: (6) | G44: (10) | H44: (12) | I44: (7) | J44: (21) | K44: 17 | L44: 19 | M44: 6 | N44: 2 | O44: 8 | P44: (1) | Q44: 16 | R44: 7 | S44: 6 | T44: 8 | U44: (648) | X44: 20 | Y44: 20 | Z44: 21
A45: =A24 -> 6 | B45: =B3-B24 -> 0 | C45: 59 | D45: 52 | E45: 24 | F45: (7) | G45: (90) | H45: (9) | I45: (18) | J45: (49) | K45: 151 | L45: 125 | M45: 224 | N45: 172 | O45: 86 | P45: 64 | Q45: 55 | R45: 94 | S45: 32 | T45: 43 | U45: 1,008 | X45: 21 | Y45: 21 | Z45: 22
A46: 7 | B46: 0 | C46: 0 | D46: 43 | E46: (18) | F46: (98) | G46: (273) | H46: (345) | I46: (266) | J46: (226) | K46: (155) | L46: =L4-L25 -> 273 | M46: 441 | N46: 867 | O46: 771 | P46: 248 | Q46: 204 | R46: 324 | S46: 179 | T46: 232 | U46: 2,201 | X46: 22 | Y46: 22 | Z46: 23
A47: 8 | B47: 0 | C47: 0 | D47: 0 | E47: (31) | F47: (64) | G47: (189) | H47: (366) | I47: (278) | J47: (554) | K47: (118) | L47: (114) | M47: 326 | N47: 518 | O47: 586 | P47: 434 | Q47: 176 | R47: 270 | S47: 104 | T47: 129 | U47: 829 | X47: 23 | Y47: 23 | Z47: 24
A48: 9 | B48: 0 | C48: 0 | D48: 0 | E48: 0 | F48: (34) | G48: (14) | H48: (57) | I48: (41) | J48: (85) | K48: (11) | L48: (96) | M48: 0 | N48: 8 | O48: 94 | P48: 65 | Q48: (14) | R48: 38 | S48: 13 | T48: 11 | U48: (123)
A49: 10 | B49: 0 | C49: 0 | D49: 0 | E49: 0 | F49: 0 | G49: (6) | H49: (24) | I49: (4) | J49: (40) | K49: (18) | L49: (30) | M49: (58) | N49: 37 | O49: (17) | P49: 13 | Q49: 40 | R49: 15 | S49: 15 | T49: 10 | U49: (67)
A50: 11 | B50: 0 | C50: 0 | D50: 0 | E50: 0 | F50: 0 | G50: 0 | H50: (60) | I50: (19) | J50: (28) | K50: 13 | L50: 5 | M50: 50 | N50: 58 | O50: (24) | P50: 54 | Q50: 4 | R50: 60 | S50: 22 | T50: 4 | U50: 139
A51: 12 | B51: 0 | C51: 0 | D51: 0 | E51: 0 | F51: 0 | G51: 0 | H51: 0 | I51: (40) | J51: (88) | K51: (14) | L51: (122) | M51: 18 | N51: 7 | O51: 15 | P51: (5) | Q51: 45 | R51: 10 | S51: 10 | T51: 11 | U51: (153)
A52: 13 | B52: 0 | C52: 0 | D52: 0 | E52: 0 | F52: 0 | G52: 0 | H52: 0 | I52: 0 | J52: (91) | K52: (21) | L52: (80) | M52: (3) | N52: (62) | O52: 85 | P52: (6) | Q52: 20 | R52: 27 | S52: 15 | T52: 9 | U52: (107)
A53: 14 | B53: 0 | C53: 0 | D53: 0 | E53: 0 | F53: 0 | G53: 0 | H53: 0 | I53: 0 | J53: 0 | K53: (48) | L53: (120) | M53: (54) | N53: (117) | O53: 66 | P53: 2 | Q53: (13) | R53: (25) | S53: 21 | T53: 7 | U53: (281)
A54: 15 | B54: 0 | C54: 0 | D54: 0 | E54: 0 | F54: 0 | G54: 0 | H54: 0 | I54: 0 | J54: 0 | K54: 0 | L54: (259) | M54: (44) | N54: (37) | O54: 4 | P54: (44) | Q54: 79 | R54: 1 | S54: 9 | T54: 2 | U54: (289)
A55: 16 | B55: 0 | C55: 0 | D55: 0 | E55: 0 | F55: 0 | G55: 0 | H55: 0 | I55: 0 | J55: 0 | K55: 0 | L55: 0 | M55: (313) | N55: (278) | O55: (83) | P55: (110) | Q55: (18) | R55: 114 | S55: 10 | T55: 18 | U55: (660)
A56: 17 | B56: 0 | C56: 0 | D56: 0 | E56: 0 | F56: 0 | G56: 0 | H56: 0 | I56: 0 | J56: 0 | K56: 0 | L56: 0 | M56: 0 | N56: (832) | O56: (236) | P56: (79) | Q56: (113) | R56: (3) | S56: 45 | T56: (4) | U56: (1,222)
A57: 18 | B57: 0 | C57: 0 | D57: 0 | E57: 0 | F57: 0 | G57: 0 | H57: 0 | I57: 0 | J57: 0 | K57: 0 | L57: 0 | M57: 0 | N57: 0 | O57: =O15-O36 -> (628) | P57: (279) | Q57: =Q15-Q36 -> (107) | R57: (147) | S57: 52 | T57: 24 | U57: (1,085)
A58: 19 | B58: =B16-B37 -> 0 | C58: 0 | D58: 0 | E58: 0 | F58: 0 | G58: 0 | H58: 0 | I58: 0 | J58: 0 | K58: 0 | L58: 0 | M58: 0 | N58: 0 | O58: 0 | P58: (68) | Q58: (34) | R58: (34) | S58: (14) | T58: 11 | U58: (139)
A59: 20 | B59: 0 | C59: 0 | D59: 0 | E59: 0 | F59: 0 | G59: 0 | H59: 0 | I59: 0 | J59: 0 | K59: 0 | L59: 0 | M59: 0 | N59: 0 | O59: 0 | P59: 0 | Q59: (36) | R59: (49) | S59: (1) | T59: 3 | U59: (83)
A60: 21 | B60: 0 | C60: 0 | D60: 0 | E60: 0 | F60: 0 | G60: 0 | H60: 0 | I60: 0 | J60: 0 | K60: 0 | L60: 0 | M60: 0 | N60: 0 | O60: 0 | P60: 0 | Q60: 0 | R60: (221) | S60: (8) | T60: (21) | U60: (250)
A61: 22 | B61: 0 | C61: 0 | D61: 0 | E61: 0 | F61: 0 | G61: 0 | H61: 0 | I61: 0 | J61: 0 | K61: 0 | L61: 0 | M61: 0 | N61: 0 | O61: 0 | P61: 0 | Q61: 0 | R61: 0 | S61: 2 | T61: (1) | U61: 1
A62: 23 | B62: 0 | C62: 0 | D62: 0 | E62: 0 | F62: 0 | G62: 0 | H62: 0 | I62: 0 | J62: 0 | K62: 0 | L62: 0 | M62: 0 | N62: 0 | O62: 0 | P62: 0 | Q62: 0 | R62: 0 | S62: 0 | T62: (14) | U62: (14)
A63: Total | B63: =B21-B42 -> 6 | C63: 61 | D63: 95 | E63: (31) | F63: (209) | G63: (582) | H63: (873) | I63: (673) | J63: (1,182) | K63: (204) | L63: (399) | M63: 593 | N63: 343 | O63: 727 | P63: 288 | Q63: 304 | R63: 481 | S63: 512 | T63: 482 | U63: (261)
A64: PCT DIFF | B64: =B43 -> 5 | C64: =C43 -> 6 | D64: 7 | E64: 8 | F64: 9 | G64: 10 | H64: 11 | I64: 12 | J64: 13 | K64: 14 | L64: 15 | M64: 16 | N64: 17 | O64: 18 | P64: 19 | Q64: 20 | R64: 21 | S64: 22 | T64: 23
A65: =A44 -> 5 | B65: =B44/B2 -> 0.35 | C65: =C44/C2 -> 0.20 | D65: 0 | E65: (0.35) | F65: (1.00) | G65: (0.25) | H65: (0.39) | I65: (0.12) | J65: (0.16) | K65: 0.20 | L65: 0.18 | M65: 0.12 | N65: 0.11 | O65: 0.35 | P65: (0.08) | Q65: 0.70 | R65: 0.37 | S65: 0.55 | T65: 0.62
A66: =A45 -> 6 | B66: =B45/B3 ->  | C66: 0.39 | D66: 0.43 | E66: 0.30 | F66: (0.06) | G66: (0.27) | H66: (0.02) | I66: (0.04) | J66: (0.03) | K66: 0.09 | L66: 0.08 | M66: 0.24 | N66: 0.26 | O66: 0.31 | P66: 0.37 | Q66: 0.32 | R66: 0.47 | S66: 0.39 | T66: 0.45
A67: 7 | D67: 0.08 | E67: (0.04) | F67: (0.35) | G67: (0.14) | H67: (0.19) | I67: (0.12) | J67: (0.05) | K67: (0.02) | L67: 0.02 | M67: 0.08 | N67: 0.15 | O67: 0.23 | P67: 0.30 | Q67: 0.25 | R67: 0.37 | S67: 0.45 | T67: 0.54
A68: 8 | E68: (0.07) | F68: (0.19) | G68: (0.19) | H68: (0.20) | I68: (0.16) | J68: (0.13) | K68: (0.03) | L68: (0.01) | M68: 0.03 | N68: 0.08 | O68: 0.12 | P68: 0.26 | Q68: 0.25 | R68: 0.35 | S68: 0.31 | T68: 0.40
A69: 9 | F69: (0.71) | G69: (0.09) | H69: (0.41) | I69: (0.15) | J69: (0.17) | K69: (0.02) | L69: (0.10) | M69: 0 | N69: 0.01 | O69: 0.11 | P69: 0.18 | Q69: (0.07) | R69: 0.38 | S69: 0.28 | T69: 0.30
A70: 10 | G70: (0.07) | H70: (0.32) | I70: (0.06) | J70: (0.16) | K70: (0.08) | L70: (0.06) | M70: (0.25) | N70: 0.06 | O70: (0.03) | P70: 0.08 | Q70: 0.26 | R70: 0.18 | S70: 0.56 | T70: 0.50
A71: 11 | H71: (0.59) | I71: (0.22) | J71: (0.17) | K71: 0.04 | L71: 0.01 | M71: 0.13 | N71: 0.14 | O71: (0.04) | P71: 0.16 | Q71: 0.02 | R71: 0.35 | S71: 0.48 | T71: 0.22
A72: 12 | I72: (0.31) | J72: (0.42) | K72: (0.07) | L72: (0.22) | M72: 0.05 | N72: 0.01 | O72: 0.04 | P72: (0.01) | Q72: 0.12 | R72: 0.06 | S72: 0.14 | T72: 0.34
A73: 13 | J73: (0.49) | K73: (0.14) | L73: (0.45) | M73: (0.01) | N73: (0.26) | O73: 0.26 | P73: (0.06) | Q73: 0.10 | R73: 0.13 | S73: 0.29 | T73: 0.26
A74: 14 | K74: (0.25) | L74: (0.43) | M74: (0.41) | N74: (0.36) | O74: 0.21 | P74: 0.01 | Q74: (0.11) | R74: (0.14) | S74: 0.20 | T74: 0.17
A75: 15 | L75: (0.60) | M75: (0.19) | N75: (0.14) | O75: 0.01 | P75: (0.26) | Q75: 0.33 | R75: 0.01 | S75: 0.08 | T75: 0.02
A76: 16 | M76: (0.51) | N76: (0.45) | O76: (0.18) | P76: (0.26) | Q76: (0.05) | R76: 0.24 | S76: 0.09 | T76: 0.11
A77: 17 | N77: (0.94) | O77: (0.33) | P77: (0.25) | Q77: (0.24) | R77: (0.01) | S77: 0.20 | T77: (0.04)
A78: 18 | O78: (0.59) | P78: (0.56) | Q78: (0.31) | R78: (0.24) | S78: 0.20 | T78: 0.09
A79: 19 | J79: =J58/J16 ->  | P79: (0.69) | Q79: (0.51) | R79: (0.58) | S79: (0.44) | T79: 0.27
A80: 20 | B80: =B59/B17 ->  | Q80: (0.24) | R80: (0.39) | S80: (0.03) | T80: 0.05
A81: 21 | R81: (1.12) | S81: (0.09) | T81: (0.36)
A82: 22 | S82: 0.50 | T82: (0.50)
A83: 23 | T83: (2.00)
